fUSD/lending_fUSD_20260115
["ID","MTS","AMOUNT","RATE_DAILY","PERIOD"]
[402063067,1768503051375,-500.0,0.00035616,10]
[402063068,1768503051384,-500.0,0.00035616,10]
[402063069,1768503051469,-500.0,0.00035616,10]
[402063070,1768503051478,-219.45451617,0.00035616,10]
[402063071,1768503051488,-500.0,0.00035616,10]
[402063072,1768503051497,-500.0,0.00035616,10]
[402063073,1768503051506,-500.0,0.00035616,10]
[402063074,1768503051515,-627.23,0.00035616,10]
[402063075,1768503051524,-500.0,0.00035616,10]
[402063076,1768503051533,-500.0,0.00035616,10]
[402063077,1768503051542,-500.0,0.00035616,10]
[402063078,1768503051551,-500.0,0.00035616,10]
[402063079,1768503051561,-500.0,0.00035616,10]
[402063080,1768503051570,-687.56,0.00035616,10]
[402063081,1768503051580,-500.0,0.00035616,10]
[402063082,1768503051589,-500.0,0.00035616,10]
[402063083,1768503051599,-500.0,0.00035616,10]
[402063084,1768503051608,-500.0,0.00035616,10]
[402063085,1768503051618,-500.0,0.00035616,10]
[402063086,1768503051627,-500.0,0.00035616,10]
[402063087,1768503051641,-500.0,0.00035616,10]
[402063088,1768503051650,-1126.89,0.00035616,10]
[402063089,1768503051660,-500.0,0.00035616,10]
[402063090,1768503051669,-500.0,0.00035616,10]
[402063091,1768503051678,-500.0,0.00035616,10]
[402063092,1768503051687,-967.55,0.00035616,10]
[402063093,1768503051697,-500.0,0.00035616,10]
[402063094,1768503051706,-500.0,0.00035616,10]
[402063095,1768503051716,-500.0,0.00035616,10]
[402063096,1768503051725,-500.0,0.00035616,10]
[402063097,1768503051735,-500.0,0.00035616,10]
[402063098,1768503051744,-213.78918078,0.00035616,10]
[402063099,1768503051755,-500.0,0.00035616,10]
[402063100,1768503051765,-500.0,0.00035616,10]
[402063101,1768503051779,-500.0,0.00035616,10]
[402063102,1768503051788,-600.01,0.00035616,10]
[402063103,1768503051797,-514.78019412,0.00035616,10]
[402063104,1768503051807,-500.0,0.00035616,10]
[402063105,1768503051816,-500.0,0.00035616,10]
[402063106,1768503051826,-500.0,0.00035616,10]
[402063107,1768503051837,-500.0,0.00035616,10]
[402063108,1768503051846,-304.67973518,0.00035616,10]
[402063109,1768503051856,-500.0,0.00035616,10]
[402063110,1768503051866,-452.20850778,0.00035616,10]
[402063111,1768503051875,-500.0,0.00035616,10]
[402063112,1768503051885,-500.0,0.00035616,10]
[402063113,1768503051894,-500.0,0.00035616,10]
[402063114,1768503051904,-500.0,0.00035616,10]
[402063115,1768503051913,-500.0,0.00035616,10]
[402063116,1768503051922,-500.0,0.00035616,10]
[402063117,1768503051931,-500.0,0.00035616,10]
[402063118,1768503051940,-500.0,0.00035616,10]
[402063119,1768503051950,-832.97,0.00035616,10]
[402063120,1768503051959,-500.0,0.00035616,10]
[402063121,1768503051968,-803.06,0.00035616,10]
[402063122,1768503051977,-500.0,0.00035616,10]
[402063123,1768503051986,-500.0,0.00035616,10]
[402063124,1768503051996,-500.0,0.00035616,10]
[402063125,1768503052005,-500.0,0.00035616,10]
[402063126,1768503052014,-911.54,0.00035616,10]
[402063127,1768503052024,-500.0,0.00035616,10]
[402063128,1768503052033,-660.17,0.00035616,10]
[402063129,1768503052042,-514.57419891,0.00035616,10]
[402063130,1768503052052,-500.0,0.00035616,10]
[402063131,1768503052062,-500.0,0.00035616,10]
[402063132,1768503052073,-247.1899988,0.00035616,10]
[402063133,1768503052084,-500.0,0.00035616,10]
[402063134,1768503052095,-500.0,0.00035616,10]
[402063135,1768503052104,-541.13,0.00035616,10]
[402063136,1768503052114,-500.0,0.00035616,10]
[402063137,1768503052124,-500.0,0.00035616,10]
[402063138,1768503052134,-500.0,0.00035616,10]
[402063139,1768503052143,-500.0,0.00035616,10]
[402063140,1768503052155,-500.0,0.00035616,10]
[402063141,1768503052165,-518.50193942,0.00035616,10]
[402063142,1768503052175,-500.0,0.00035616,10]
[402063143,1768503052185,-500.0,0.00035616,10]
[402063144,1768503052194,-619.86123498,0.00035616,10]
[402063145,1768503052203,-545.03072203,0.00035616,10]
[402063146,1768503052215,-696.38,0.00035616,10]
[402063147,1768503052224,-500.0,0.00035616,10]
[402063148,1768503052233,-955.0,0.00035616,10]
[402063149,1768503052242,-500.0,0.00035616,10]
[402063150,1768503052251,-500.0,0.00035616,10]
[402063151,1768503052261,-674.14,0.00035616,10]
[402063152,1768503052270,-500.0,0.00035616,10]
[402063153,1768503052279,-500.0,0.00035616,10]
[402063154,1768503052295,-500.0,0.00035616,10]
[402063155,1768503052308,-500.0,0.00035616,10]
[402063156,1768503052317,-500.0,0.00035616,10]
[402063157,1768503052327,-585.65,0.00035616,10]
[402063158,1768503052338,-500.0,0.00035616,10]
[402063159,1768503052348,-500.0,0.00035616,10]
[402063160,1768503052359,-1000.53,0.00035616,10]
[402063161,1768503052369,-555.04,0.00035616,10]
[402063162,1768503052379,-505.49292817,0.00035616,10]
[402063163,1768503052390,-307.89516698,0.00035616,10]
[402063164,1768503052401,-500.0,0.00035616,2]
[402063165,1768503052411,-500.0,0.00035616,10]
[402063166,1768503052421,-500.0,0.00035616,10]
[402063167,1768503052430,-500.0,0.00035616,10]
[402063168,1768503052440,-500.0,0.00035616,10]
[402063169,1768503052449,-636.53,0.00035616,10]
[402063170,1768503052459,-875.7,0.00035616,10]
[402063171,1768503052468,-500.0,0.00035616,10]
[402063172,1768503052478,-821.78,0.00035616,10]
[402063173,1768503052488,-500.0,0.00035616,10]
[402063174,1768503052497,-500.0,0.00035616,10]
[402063175,1768503052506,-500.0,0.00035616,10]
[402063176,1768503052516,-500.0,0.00035616,10]
[402063177,1768503052525,-500.0,0.00035616,10]
[402063178,1768503052534,-500.0,0.00035616,10]
[402063179,1768503052544,-500.0,0.00035616,10]
[402063180,1768503052553,-500.0,0.00035616,10]
[402063181,1768503052562,-609.11,0.00035616,10]
[402063182,1768503052573,-500.0,0.00035616,10]
[402063183,1768503052582,-500.0,0.00035616,10]
[402063184,1768503052592,-500.0,0.00035616,10]
[402063185,1768503052602,-762.07,0.00035616,10]
[402063186,1768503052611,-532.77317502,0.00035616,10]
[402063187,1768503052621,-500.0,0.00035616,10]
[402063188,1768503052630,-500.0,0.00035616,10]
[402063189,1768503052640,-500.0,0.00035616,10]
[402063190,1768503052649,-696.18,0.00035616,10]
[402063191,1768503052659,-516.37003051,0.00035616,10]
[402063192,1768503052673,-503.41833615,0.00035616,10]
[402063193,1768503052682,-500.0,0.00035616,10]
[402063194,1768503052692,-500.0,0.00035616,10]
[402063195,1768503052701,-922.04,0.00035616,10]
[402063196,1768503052711,-500.0,0.00035616,10]
[402063197,1768503052722,-500.0,0.00035616,10]
[402063198,1768503052732,-500.0,0.00035616,10]
[402063199,1768503052742,-500.0,0.00035616,10]
[402063200,1768503052752,-1147.96,0.00035616,10]
[402063201,1768503052764,-500.0,0.00035616,10]
[402063202,1768503052775,-500.0,0.00035616,10]
[402063203,1768503052785,-500.0,0.00035616,10]
[402063204,1768503052795,-500.0,0.00035616,10]
[402063205,1768503052805,-500.0,0.00035616,10]
[402063206,1768503052815,-500.0,0.00035616,10]
[402063207,1768503052825,-649.81,0.00035616,10]
[402063208,1768503052835,-500.0,0.00035616,10]
[402063209,1768503052846,-500.0,0.00035616,10]
[402063210,1768503052855,-500.0,0.00035616,10]
[402063211,1768503052865,-500.0,0.00035616,10]
[402063212,1768503052874,-612.4,0.00035616,10]
[402063213,1768503052884,-500.0,0.00035616,10]
[402063214,1768503052893,-500.0,0.00035616,10]
[402063215,1768503052905,-500.0,0.00035616,10]
[402063216,1768503052914,-500.0,0.00035616,10]
[402063217,1768503052925,-636.55,0.00035616,10]
[402063218,1768503052936,-500.0,0.00035616,10]
[402063219,1768503052946,-500.0,0.00035616,10]
[402063220,1768503052956,-500.0,0.00035616,10]
[402063221,1768503052965,-500.0,0.00035616,10]
[402063222,1768503052975,-500.0,0.00035616,10]
[402063223,1768503052985,-500.0,0.00035616,10]
[402063224,1768503052996,-501.71392678,0.00035616,10]
[402063225,1768503053006,-500.0,0.00035616,10]
[402063226,1768503053016,-500.0,0.00035616,10]
[402063227,1768503053026,-569.92,0.00035616,10]
[402063228,1768503053040,-500.0,0.00035616,10]
[402063229,1768503053050,-500.0,0.00035616,10]
[402063230,1768503053060,-500.0,0.00035616,10]
[402063231,1768503053069,-500.0,0.00035616,10]
[402063232,1768503053079,-500.0,0.00035616,10]
[402063233,1768503053089,-500.0,0.00035616,10]
[402063234,1768503053099,-500.0,0.00035616,10]
[402063235,1768503053109,-500.0,0.00035616,10]
[402063236,1768503053120,-500.0,0.00035616,10]
[402063237,1768503053129,-500.0,0.00035616,10]
[402063238,1768503053139,-820.49,0.00035616,10]
[402063239,1768503053149,-500.0,0.00035616,10]
[402063240,1768503053159,-300.0,0.00035616,10]
[402063241,1768503053169,-743.16,0.00035616,10]
[402063242,1768503053179,-500.0,0.00035616,10]
[402063243,1768503053189,-500.0,0.00035616,10]
[402063244,1768503053198,-500.0,0.00035616,10]
[402063245,1768503053208,-882.15,0.00035616,10]
[402063246,1768503053218,-500.0,0.00035616,10]
[402063247,1768503053229,-500.0,0.00035616,10]
[402063248,1768503053239,-500.0,0.00035616,10]
[402063249,1768503053249,-500.0,0.00035616,10]
[402063250,1768503053258,-500.0,0.00035616,10]
[402063251,1768503053268,-820.87,0.00035616,10]
[402063252,1768503053279,-662.97,0.00035616,10]
[402063253,1768503053289,-500.0,0.00035616,10]
[402063254,1768503053299,-500.0,0.00035616,10]
[402063255,1768503053308,-520.92579515,0.00035616,10]
[402063256,1768503053318,-500.0,0.00035616,10]
[402063257,1768503053328,-500.0,0.00035616,10]
[402063258,1768503053338,-1529.82,0.00035616,10]
[402063259,1768503053347,-500.0,0.00035616,10]
[402063260,1768503053357,-692.49,0.00035616,10]
[402063261,1768503053367,-500.0,0.00035616,10]
[402063262,1768503053376,-800.0,0.00035616,120]
[402063263,1768503053386,-500.0,0.00035616,10]
[402063264,1768503053401,-500.0,0.00035616,10]
[402063265,1768503053410,-717.99,0.00035616,10]
[402063266,1768503053420,-500.0,0.00035616,10]
[402063267,1768503053430,-500.0,0.00035616,10]
[402063268,1768503053439,-342.63204274,0.00035616,10]
[402063269,1768503053450,-500.0,0.00035616,10]
[402063270,1768503053460,-500.0,0.00035616,10]
[402063271,1768503053470,-500.0,0.00035616,10]
[402063272,1768503053480,-504.7,0.00035616,10]
[402063273,1768503053489,-500.0,0.00035616,10]
[402063274,1768503053499,-3901.35,0.00035616,10]
[402063275,1768503053508,-500.0,0.00035616,10]
[402063276,1768503053518,-500.0,0.00035616,10]
[402063277,1768503053528,-500.0,0.00035616,10]
[402063278,1768503053538,-500.0,0.00035616,10]
[402063279,1768503053548,-511.5496435,0.00035616,10]
[402063280,1768503053557,-500.0,0.00035616,10]
[402063281,1768503053567,-570.42,0.00035616,10]
[402063282,1768503053577,-500.0,0.00035616,10]
[402063283,1768503053588,-160.34145397,0.00035616,10]
[402063284,1768503053598,-500.0,0.00035616,10]
[402063285,1768503053607,-564.30076535,0.00035616,10]
[402063286,1768503053617,-500.0,0.00035616,10]
[402063287,1768503053627,-500.0,0.00035616,10]
[402063288,1768503053638,-675.06,0.00035616,10]
[402063289,1768503053647,-500.0,0.00035616,10]
[402063290,1768503053657,-500.0,0.00035616,10]
[402063291,1768503053667,-500.0,0.00035616,10]
[402063292,1768503053677,-587.93,0.00035616,10]
[402063293,1768503053686,-1171.44,0.00035616,10]
[402063294,1768503053696,-500.0,0.00035616,10]
[402063295,1768503053705,-500.0,0.00035616,10]
[402063296,1768503053715,-500.0,0.00035616,2]
[402063297,1768503053724,-500.0,0.00035616,10]
[402063298,1768503053734,-522.43741367,0.00035616,10]
[402063299,1768503053744,-650.76,0.00035616,10]
[402063300,1768503053754,-500.0,0.00035616,10]
[402063301,1768503053769,-500.0,0.00035616,10]
[402063302,1768503053780,-563.08,0.00035616,10]
[402063303,1768503053789,-500.0,0.00035616,10]
[402063304,1768503053799,-599.77,0.00035616,10]
[402063305,1768503053809,-500.0,0.00035616,10]
[402063306,1768503053819,-500.0,0.00035616,10]
[402063307,1768503053829,-954.19,0.00035616,10]
[402063308,1768503053839,-500.0,0.00035616,10]
[402063309,1768503053850,-500.0,0.00035616,10]
[402063310,1768503053859,-1000.0,0.00035616,10]
[402063311,1768503053869,-660.49,0.00035616,10]
[402063312,1768503053880,-500.0,0.00035616,10]
[402063313,1768503053890,-500.0,0.00035616,10]
[402063314,1768503053899,-500.0,0.00035616,10]
[402063315,1768503053909,-500.0,0.00035616,10]
[402063316,1768503053919,-918.36,0.00035616,10]
[402063317,1768503053929,-617.54,0.00035616,10]
[402063318,1768503053939,-500.0,0.00035616,10]
[402063319,1768503053948,-3297.39,0.00035616,10]
[402063320,1768503053960,-407.55873022,0.00035616,10]
[402063321,1768503053970,-500.0,0.00035616,10]
[402063322,1768503053980,-604.91,0.00035616,10]
[402063323,1768503053989,-579.89,0.00035616,10]
[402063324,1768503053999,-500.0,0.00035616,10]
[402063325,1768503054009,-500.0,0.00035616,10]
[402063326,1768503054020,-500.0,0.00035616,10]
[402063327,1768503054029,-535.87,0.00035616,10]
[402063328,1768503054039,-500.0,0.00035616,10]
[402063329,1768503054050,-591.24,0.00035616,10]
[402063330,1768503054060,-500.0,0.00035616,10]
[402063331,1768503054069,-500.0,0.00035616,10]
[402063332,1768503054080,-882.6,0.00035616,10]
[402063333,1768503054090,-664.74,0.00035616,10]
[402063334,1768503054099,-500.0,0.00035616,10]
[402063335,1768503054110,-500.0,0.00035616,10]
[402063336,1768503054119,-505.93,0.00035616,10]
[402063337,1768503054129,-203.52697627,0.00035616,10]
[402063338,1768503054140,-500.0,0.00035616,10]
[402063339,1768503054149,-603.38,0.00035616,10]
[402063340,1768503054162,-500.0,0.00035616,10]
[402063341,1768503054172,-1826.24,0.00035616,10]
[402063342,1768503054182,-1656.18,0.00035616,10]
[402063343,1768503054191,-609.06,0.00035616,10]
[402063344,1768503054201,-524.13380937,0.00035616,10]
[402063345,1768503054210,-500.0,0.00035616,10]
[402063346,1768503054220,-500.0,0.00035616,120]
[402063347,1768503054230,-500.0,0.00035616,10]
[402063348,1768503054240,-500.0,0.00035616,10]
[402063349,1768503054250,-419.0398097,0.00035616,10]
[402063350,1768503054259,-500.0,0.00035616,10]
[402063351,1768503054268,-500.0,0.00035616,10]
[402063352,1768503054278,-500.0,0.00035616,10]
[402063353,1768503054287,-500.0,0.00035616,10]
[402063354,1768503054296,-500.0,0.00035616,10]
[402063355,1768503054308,-500.0,0.00035616,10]
[402063356,1768503054318,-1331.68,0.00035616,10]
[402063357,1768503054328,-500.0,0.00035616,10]
[402063358,1768503054339,-500.0,0.00035616,10]
[402063359,1768503054350,-500.0,0.00035616,10]
[402063360,1768503054360,-500.0,0.00035616,10]
[402063361,1768503054370,-500.0,0.00035616,10]
[402063362,1768503054379,-500.0,0.00035616,10]
[402063363,1768503054388,-500.0,0.00035616,10]
[402063364,1768503054400,-679.71,0.00035616,10]
[402063365,1768503054409,-500.0,0.00035616,10]
[402063366,1768503054418,-500.0,0.00035616,10]
[402063367,1768503054427,-651.94,0.00035616,10]
[402063368,1768503054436,-233.73476322,0.00035616,10]
[402063369,1768503054446,-500.0,0.00035616,10]
[402063370,1768503054457,-210.26278052,0.00035616,10]
[402063371,1768503054467,-500.0,0.00035616,10]
[402063372,1768503054476,-529.12,0.00035616,10]
[402063373,1768503054485,-1257.61,0.00035616,10]
[402063374,1768503054495,-500.0,0.00035616,10]
[402063375,1768503054505,-812.99,0.00035616,10]
[402063376,1768503054515,-500.0,0.00035616,10]
[402063377,1768503054524,-659.28,0.00035616,10]
[402063378,1768503054533,-500.0,0.00035616,10]
[402063379,1768503054543,-500.0,0.00035616,10]
[402063380,1768503054552,-574.37,0.00035616,10]
[402063381,1768503054562,-500.0,0.00035616,10]
[402063382,1768503054573,-500.0,0.00035616,10]
[402063383,1768503054583,-792.76,0.00035616,10]
[402063384,1768503054593,-500.0,0.00035616,10]
[402063385,1768503054604,-2463.33,0.00035616,10]
[402063386,1768503054613,-500.0,0.00035616,10]
[402063387,1768503054623,-500.0,0.00035616,10]
[402063388,1768503054633,-500.0,0.00035616,10]
[402063389,1768503054643,-500.0,0.00035616,10]
[402063390,1768503054653,-500.0,0.00035616,10]
[402063391,1768503054663,-500.0,0.00035616,10]
[402063392,1768503054673,-721.87,0.00035616,10]
[402063393,1768503054683,-844.97,0.00035616,10]
[402063394,1768503054693,-500.0,0.00035616,10]
[402063395,1768503054702,-727.82,0.00035616,10]
[402063396,1768503054712,-956.35,0.00035616,10]
[402063397,1768503054721,-500.0,0.00035616,10]
[402063398,1768503054730,-500.0,0.00035616,10]
[402063399,1768503054740,-641.12,0.00035616,10]
[402063400,1768503054749,-500.0,0.00035616,10]
[402063401,1768503054759,-500.0,0.00035616,10]
[402063402,1768503054771,-569.34,0.00035616,10]
[402063403,1768503054781,-500.0,0.00035616,10]
[402063404,1768503054791,-200.0,0.00035616,120]
[402063405,1768503054800,-500.0,0.00035616,10]
[402063406,1768503054811,-500.0,0.00035616,10]
[402063407,1768503054822,-735.15,0.00035616,10]
[402063408,1768503054832,-500.0,0.00035616,10]
[402063409,1768503054843,-500.0,0.00035616,10]
[402063410,1768503054853,-500.0,0.00035616,10]
[402063411,1768503054862,-947.56,0.00035616,10]
[402063412,1768503054872,-816.34,0.00035616,10]
[402063413,1768503054882,-500.0,0.00035616,10]
[402063414,1768503054891,-217.53579994,0.00035616,10]
[402063415,1768503054901,-868.84,0.00035616,10]
[402063416,1768503054910,-500.0,0.00035616,10]
[402063417,1768503054920,-500.0,0.00035616,10]
[402063418,1768503054931,-500.0,0.00035616,10]
[402063419,1768503054941,-761.47,0.00035616,10]
[402063420,1768503054951,-500.0,0.00035616,10]
[402063421,1768503054960,-500.0,0.00035616,10]
[402063422,1768503054970,-1139.64,0.00035616,10]
[402063423,1768503054979,-500.0,0.00035616,10]
[402063424,1768503054988,-500.0,0.00035616,10]
[402063425,1768503054998,-500.0,0.00035616,10]
[402063426,1768503055007,-651.59,0.00035616,10]
[402063427,1768503055017,-506.47,0.00035616,10]
[402063428,1768503055027,-500.0,0.00035616,10]
[402063429,1768503055036,-1079.44,0.00035616,10]
[402063430,1768503055045,-500.0,0.00035616,10]
[402063431,1768503055055,-500.0,0.00035616,10]
[402063432,1768503055064,-500.0,0.00035616,10]
[402063433,1768503055074,-500.0,0.00035616,10]
[402063434,1768503055083,-500.0,0.00035616,10]
[402063435,1768503055094,-500.0,0.00035616,10]
[402063436,1768503055104,-500.0,0.00035616,10]
[402063437,1768503055115,-1103.44,0.00035616,10]
[402063438,1768503055124,-500.0,0.00035616,10]
[402063439,1768503055134,-500.0,0.00035616,10]
[402063440,1768503055144,-714.33,0.00035616,10]
[402063441,1768503055155,-534.34,0.00035616,10]
[402063442,1768503055165,-500.0,0.00035616,10]
[402063443,1768503055175,-500.0,0.00035616,10]
[402063444,1768503055185,-500.0,0.00035616,10]
[402063445,1768503055195,-500.0,0.00035616,10]
[402063446,1768503055205,-500.0,0.00035616,10]
[402063447,1768503055215,-500.0,0.00035616,10]
[402063448,1768503055225,-500.0,0.00035616,10]
[402063449,1768503055235,-761.11,0.00035616,10]
[402063450,1768503055246,-3579.88,0.00035616,10]
[402063451,1768503055256,-500.0,0.00035616,10]
[402063452,1768503055266,-1270.78,0.00035616,10]
[402063453,1768503055276,-848.31,0.00035616,10]
[402063454,1768503055286,-530.99551947,0.00035616,10]
[402063455,1768503055296,-988.46,0.00035616,10]
[402063456,1768503055306,-500.0,0.00035616,10]
[402063457,1768503055316,-500.0,0.00035616,10]
[402063458,1768503055326,-525.88956857,0.00035616,10]
[402063459,1768503055336,-500.0,0.00035616,10]
[402063460,1768503055346,-500.0,0.00035616,10]
[402063461,1768503055356,-500.0,0.00035616,10]
[402063462,1768503055366,-500.0,0.00035616,10]
[402063463,1768503055376,-1039.68,0.00035616,10]
[402063464,1768503055386,-500.0,0.00035616,10]
[402063465,1768503055396,-500.0,0.00035616,10]
[402063466,1768503055406,-500.0,0.00035616,10]
[402063467,1768503055416,-845.57,0.00035616,10]
[402063468,1768503055425,-500.0,0.00035616,10]
[402063469,1768503055435,-500.0,0.00035616,10]
[402063470,1768503055446,-1299.34,0.00035616,10]
[402063471,1768503055456,-814.08,0.00035616,10]
[402063472,1768503055466,-775.84,0.00035616,10]
[402063473,1768503055476,-500.0,0.00035616,10]
[402063474,1768503055486,-500.0,0.00035616,10]
[402063475,1768503055496,-917.95,0.00035616,10]
[402063476,1768503055506,-500.0,0.00035616,10]
[402063477,1768503055516,-500.0,0.00035616,10]
[402063478,1768503055526,-554.99638397,0.00035616,10]
[402063479,1768503055535,-681.79,0.00035616,10]
[402063480,1768503055545,-534.91,0.00035616,10]
[402063481,1768503055555,-690.07,0.00035616,10]
[402063482,1768503055565,-1020.43,0.00035616,10]
[402063483,1768503055575,-500.0,0.00035616,10]
[402063484,1768503055586,-500.0,0.00035616,10]
[402063485,1768503055596,-500.0,0.00035616,10]
[402063486,1768503055606,-500.0,0.00035616,10]
[402063487,1768503055616,-1303.25,0.00035616,10]
[402063488,1768503055626,-2164.76,0.00035616,10]
[402063489,1768503055635,-500.0,0.00035616,10]
[402063490,1768503055645,-779.73,0.00035616,10]
[402063491,1768503055656,-500.0,0.00035616,10]
[402063492,1768503055666,-500.0,0.00035616,10]
[402063493,1768503055676,-690.15,0.00035616,10]
[402063494,1768503055686,-500.0,0.00035616,10]
[402063495,1768503055696,-500.0,0.00035616,10]
[402063496,1768503055706,-500.0,0.00035616,10]
[402063497,1768503055716,-518.18005044,0.00035616,10]
[402063498,1768503055726,-500.0,0.00035616,10]
[402063499,1768503055736,-587.63,0.00035616,10]
[402063500,1768503055746,-500.0,0.00035616,10]
[402063501,1768503055757,-500.0,0.00035616,10]
[402063502,1768503055770,-500.0,0.00035616,10]
[402063503,1768503055780,-500.0,0.00035616,10]
[402063504,1768503055791,-500.0,0.00035616,10]
[402063505,1768503055802,-2598.8,0.00035616,10]
[402063506,1768503055812,-500.0,0.00035616,10]
[402063507,1768503055823,-568.25,0.00035616,10]
[402063508,1768503055834,-500.0,0.00035616,10]
[402063509,1768503055845,-500.0,0.00035616,10]
[402063510,1768503055855,-500.0,0.00035616,10]
[402063511,1768503055865,-889.29,0.00035616,10]
[402063512,1768503055875,-500.0,0.00035616,10]
[402063513,1768503055885,-500.0,0.00035616,10]
[402063514,1768503055895,-780.18,0.00035616,10]
[402063515,1768503055905,-500.0,0.00035616,5]
[402063516,1768503055915,-160.87161426,0.00035616,10]
[402063517,1768503055925,-1154.26,0.00035616,10]
[402063518,1768503055935,-816.3,0.00035616,10]
[402063519,1768503055945,-500.0,0.00035616,10]
[402063520,1768503055955,-500.0,0.00035616,10]
[402063521,1768503055965,-500.0,0.00035616,10]
[402063522,1768503055975,-3771.07,0.00035616,10]
[402063523,1768503055985,-500.0,0.00035616,10]
[402063524,1768503055996,-337.99294794,0.00035616,10]
[402063525,1768503056007,-500.0,0.00035616,10]
[402063526,1768503056017,-1378.93,0.00035616,10]
[402063527,1768503056028,-500.0,0.00035616,10]
[402063528,1768503056038,-500.0,0.00035616,10]
[402063529,1768503056049,-917.89,0.00035616,10]
[402063530,1768503056059,-500.0,0.00035616,10]
[402063531,1768503056069,-500.0,0.00035616,10]
[402063532,1768503056080,-500.0,0.00035616,10]
[402063533,1768503056091,-654.06,0.00035616,10]
[402063534,1768503056101,-500.0,0.00035616,10]
[402063535,1768503056113,-782.23,0.00035616,10]
[402063536,1768503056124,-500.0,0.00035616,10]
[402063537,1768503056134,-219.39949463,0.00035616,10]
[402063538,1768503056143,-500.0,0.00035616,10]
[402063539,1768503056153,-500.0,0.00035616,10]
[402063540,1768503056163,-500.0,0.00035616,10]
[402063541,1768503056173,-500.0,0.00035616,10]
[402063542,1768503056183,-500.0,0.00035616,10]
[402063543,1768503056193,-500.0,0.00035616,10]
[402063544,1768503056203,-653.6,0.00035616,10]
[402063545,1768503056213,-500.0,0.00035616,10]
[402063546,1768503056223,-500.0,0.00035616,10]
[402063547,1768503056233,-566.14,0.00035616,10]
[402063548,1768503056243,-500.0,0.00035616,10]
[402063549,1768503056253,-500.0,0.00035616,10]
[402063550,1768503056263,-767.47,0.00035616,10]
[402063551,1768503056273,-917.55,0.00035616,10]
[402063552,1768503056283,-500.0,0.00035616,10]
[402063553,1768503056293,-500.0,0.00035616,10]
[402063554,1768503056303,-1216.62,0.00035616,10]
[402063555,1768503056314,-701.02,0.00035616,10]
[402063556,1768503056323,-1006.43,0.00035616,10]
[402063557,1768503056334,-500.0,0.00035616,10]
[402063558,1768503056344,-500.0,0.00035616,10]
[402063559,1768503056354,-151.0,0.00035616,10]
[402063560,1768503056365,-615.31,0.00035616,10]
[402063561,1768503056375,-534.06,0.00035616,10]
[402063562,1768503056384,-933.99,0.00035616,10]
[402063563,1768503056394,-500.0,0.00035616,10]
[402063564,1768503056404,-821.62,0.00035616,10]
[402063565,1768503056414,-2075.18,0.00035616,10]
[402063566,1768503056424,-500.0,0.00035616,10]